[Event "Titled Tuesday Blitz November 01 Late 2022"]
[White "Rodriguez Santiago, Jaime"]
[Black "Khandelwal, Ankush"]
[WhiteFideId "3100898"]
[BlackFideId "413470"]
[WhiteElo "2025"]
[BlackElo "2271"]
[Result "0-1"]
[Round "07"]
[TimeControl "180+1"]
[Date "2022.11.02"]
[WhiteClock "0:00:25"]
[BlackClock "0:00:51"]

1. c4 {[%clk 0:03:00]}  Nf6 {[%clk 0:02:58]} 2. Nc3 {[%clk 0:03:00]}  g6 {[%clk 0:02:58]} 3. g3 {[%clk 0:02:58]}  Bg7 {[%clk 0:02:58]} 4. Bg2 {[%clk 0:02:58]}  O-O {[%clk 0:02:59]} 5. e4 {[%clk 0:02:59]}  d6 {[%clk 0:02:59]} 6. Nge2 {[%clk 0:02:59]}  c5 {[%clk 0:02:56]} 7. d3 {[%clk 0:02:59]}  Nc6 {[%clk 0:02:56]} 8. O-O {[%clk 0:02:59]}  a6 {[%clk 0:02:56]} 9. a4 {[%clk 0:02:58]}  Rb8 {[%clk 0:02:55]} 10. h3 {[%clk 0:02:57]}  Bd7 {[%clk 0:02:56]} 11. Be3 {[%clk 0:02:52]}  Qc8 {[%clk 0:02:46]} 12. Kh2 {[%clk 0:02:51]}  Ne8 {[%clk 0:02:47]} 13. d4 {[%clk 0:02:48]}  cxd4 {[%clk 0:02:46]} 14. Nxd4 {[%clk 0:02:47]}  Nxd4 {[%clk 0:02:45]} 15. Bxd4 {[%clk 0:02:47]}  Qxc4 {[%clk 0:02:46]} 16. Bxg7 {[%clk 0:02:47]}  Nxg7 {[%clk 0:02:45]} 17. Nd5 {[%clk 0:02:43]}  Rfe8 {[%clk 0:02:42]} 18. Rc1 {[%clk 0:02:37]}  Qxa4 {[%clk 0:02:42]} 19. b3 {[%clk 0:02:29]}  Qb5 {[%clk 0:02:37]} 20. Nc7 {[%clk 0:02:28]}  Qa5 {[%clk 0:02:28]} 21. Nxe8 {[%clk 0:02:27]}  Nxe8 {[%clk 0:02:28]} 22. f4 {[%clk 0:02:17]}  Bc6 {[%clk 0:02:26]} 23. f5 {[%clk 0:02:14]}  Nf6 {[%clk 0:02:25]} 24. Qe2 {[%clk 0:02:05]}  Bb5 {[%clk 0:02:25]} 25. Qe1 {[%clk 0:02:02]}  Qa2 {[%clk 0:02:17]} 26. Rf2 {[%clk 0:02:01]}  Qxb3 {[%clk 0:02:17]} 27. e5 {[%clk 0:01:52]}  dxe5 {[%clk 0:02:10]} 28. Qxe5 {[%clk 0:01:51]}  Re8 {[%clk 0:02:09]} 29. fxg6 {[%clk 0:01:50]}  hxg6 {[%clk 0:02:04]} 30. Rxf6 {[%clk 0:01:47]}  exf6 {[%clk 0:02:05]} 31. Qxf6 {[%clk 0:01:38]}  Bc6 {[%clk 0:02:02]} 32. Rg1 {[%clk 0:01:20]}  Qc2 {[%clk 0:01:42]} 33. Kh1 {[%clk 0:01:18]}  Re2 {[%clk 0:01:35]} 34. Qd8+ {[%clk 0:01:14]}  Kg7 {[%clk 0:01:35]} 35. Qd4+ {[%clk 0:01:14]}  f6 {[%clk 0:01:35]} 36. Qd6 {[%clk 0:00:56]}  Bxg2+ {[%clk 0:00:53]} 37. Rxg2 {[%clk 0:00:54]}  Rxg2 {[%clk 0:00:52]} 38. Qe7+ {[%clk 0:00:54]}  Kh6 {[%clk 0:00:52]} 39. Qf8+ {[%clk 0:00:35]}  Kg5 {[%clk 0:00:51]} 40. h4+ {[%clk 0:00:26]}  Kg4 {[%clk 0:00:52]} 41. Qb4+ {[%clk 0:00:25]}  Kh3 {[%clk 0:00:51]} 0-1


[Site "https://www.chess.com"]

[Event "Titled Tuesday Blitz November 01 Late 2022"]
[White "Rosenberg, Evan S"]
[Black "Castellanos Gomez, Alejandro"]
[WhiteFideId "2019299"]
[BlackFideId "22284141"]
[WhiteElo "2384"]
[BlackElo "2168"]
[Result "0-1"]
[Round "07"]
[TimeControl "180+1"]
[Date "2022.11.02"]
[WhiteClock "0:00:01"]
[BlackClock "0:00:04"]

1. d4 {[%clk 0:03:00]}  Nf6 {[%clk 0:02:54]} 2. Nf3 {[%clk 0:03:01]}  e6 {[%clk 0:02:55]} 3. g3 {[%clk 0:03:01]}  b6 {[%clk 0:02:50]} 4. Bg2 {[%clk 0:03:01]}  Bb7 {[%clk 0:02:50]} 5. O-O {[%clk 0:03:00]}  Be7 {[%clk 0:02:49]} 6. c4 {[%clk 0:02:57]}  O-O {[%clk 0:02:49]} 7. Nc3 {[%clk 0:02:54]}  Ne4 {[%clk 0:02:45]} 8. Nxe4 {[%clk 0:02:53]}  Bxe4 {[%clk 0:02:44]} 9. Ne1 {[%clk 0:02:54]}  Bxg2 {[%clk 0:02:44]} 10. Nxg2 {[%clk 0:02:55]}  d5 {[%clk 0:02:34]} 11. Qa4 {[%clk 0:02:54]}  a6 {[%clk 0:02:25]} 12. Rd1 {[%clk 0:02:43]}  Nd7 {[%clk 0:02:22]} 13. cxd5 {[%clk 0:02:22]}  exd5 {[%clk 0:02:17]} 14. Bf4 {[%clk 0:02:20]}  b5 {[%clk 0:02:09]} 15. Qc2 {[%clk 0:02:18]}  Rc8 {[%clk 0:02:05]} 16. Qc6 {[%clk 0:02:13]}  Nb6 {[%clk 0:02:02]} 17. b3 {[%clk 0:02:07]}  Bd6 {[%clk 0:01:48]} 18. Rac1 {[%clk 0:02:04]}  f5 {[%clk 0:01:35]} 19. Bxd6 {[%clk 0:01:44]}  Qxd6 {[%clk 0:01:35]} 20. Nf4 {[%clk 0:01:35]}  Rf6 {[%clk 0:01:18]} 21. Qb7 {[%clk 0:01:25]}  g5 {[%clk 0:01:11]} 22. Nd3 {[%clk 0:01:23]}  a5 {[%clk 0:00:58]} 23. Ne5 {[%clk 0:01:20]}  f4 {[%clk 0:00:54]} 24. Rc6 {[%clk 0:01:19]}  Qf8 {[%clk 0:00:54]} 25. Rxb6 {[%clk 0:00:55]}  cxb6 {[%clk 0:00:41]} 26. Qxd5+ {[%clk 0:00:54]}  Kg7 {[%clk 0:00:37]} 27. Nd7 {[%clk 0:00:51]}  Rf5 {[%clk 0:00:37]} 28. Qe6 {[%clk 0:00:28]}  Qf7 {[%clk 0:00:36]} 29. Qxf7+ {[%clk 0:00:26]}  Kxf7 {[%clk 0:00:35]} 30. Nxb6 {[%clk 0:00:27]}  Rd8 {[%clk 0:00:30]} 31. a4 {[%clk 0:00:13]}  Rd6 {[%clk 0:00:28]} 32. Nc8 {[%clk 0:00:12]}  Rd8 {[%clk 0:00:26]} 33. Na7 {[%clk 0:00:12]}  bxa4 {[%clk 0:00:26]} 34. bxa4 {[%clk 0:00:11]}  Re8 {[%clk 0:00:20]} 35. d5 {[%clk 0:00:09]}  Ke7 {[%clk 0:00:15]} 36. Nc6+ {[%clk 0:00:07]}  Kd6 {[%clk 0:00:15]} 37. Nxa5 {[%clk 0:00:06]}  Rxd5 {[%clk 0:00:14]} 38. Rxd5+ {[%clk 0:00:07]}  Kxd5 {[%clk 0:00:15]} 39. Kf1 {[%clk 0:00:07]}  Ra8 {[%clk 0:00:13]} 40. Nb3 {[%clk 0:00:07]}  Rxa4 {[%clk 0:00:14]} 41. Nd2 {[%clk 0:00:07]}  fxg3 {[%clk 0:00:09]} 42. hxg3 {[%clk 0:00:07]}  g4 {[%clk 0:00:10]} 43. e3 {[%clk 0:00:06]}  Ra2 {[%clk 0:00:08]} 44. Ke1 {[%clk 0:00:05]}  Ra1+ {[%clk 0:00:07]} 45. Ke2 {[%clk 0:00:05]}  h5 {[%clk 0:00:07]} 46. e4+ {[%clk 0:00:04]}  Ke5 {[%clk 0:00:06]} 47. Ke3 {[%clk 0:00:04]}  Ra3+ {[%clk 0:00:06]} 48. Ke2 {[%clk 0:00:04]}  Rc3 {[%clk 0:00:06]} 49. f4+ {[%clk 0:00:02]}  gxf3+ {[%clk 0:00:05]} 50. Nxf3+ {[%clk 0:00:02]}  Kxe4 {[%clk 0:00:05]} 51. Nd2+ {[%clk 0:00:02]}  Kf5 {[%clk 0:00:06]} 52. Kf2 {[%clk 0:00:01]}  Kg4 {[%clk 0:00:04]} 0-1


[Site "https://www.chess.com"]

[Event "Titled Tuesday Blitz November 01 Late 2022"]
[White "Sabar, Ethmane Daouda"]
[Black "Boidiya, Sidi"]
[WhiteFideId "19600097"]
[BlackFideId "19600100"]
[WhiteElo "1950"]
[BlackElo "2113"]
[Result "0-1"]
[Round "07"]
[TimeControl "180+1"]
[Date "2022.11.02"]
[WhiteClock "0:00:03"]
[BlackClock "0:01:06"]

1. b3 {[%clk 0:03:00]}  Nf6 {[%clk 0:02:59]} 2. Bb2 {[%clk 0:03:01]}  e6 {[%clk 0:03:00]} 3. e3 {[%clk 0:03:01]}  d5 {[%clk 0:02:59]} 4. f4 {[%clk 0:03:01]}  Bd6 {[%clk 0:02:59]} 5. Nf3 {[%clk 0:03:02]}  c6 {[%clk 0:02:56]} 6. c4 {[%clk 0:03:00]}  Qc7 {[%clk 0:02:57]} 7. cxd5 {[%clk 0:03:01]}  exd5 {[%clk 0:02:57]} 8. Bd3 {[%clk 0:03:00]}  Nbd7 {[%clk 0:02:56]} 9. O-O {[%clk 0:02:59]}  Nc5 {[%clk 0:02:56]} 10. Bc2 {[%clk 0:02:58]}  Bg4 {[%clk 0:02:55]} 11. h3 {[%clk 0:02:52]}  Bd7 {[%clk 0:02:51]} 12. Nc3 {[%clk 0:02:47]}  O-O-O {[%clk 0:02:50]} 13. Rc1 {[%clk 0:02:40]}  Kb8 {[%clk 0:02:48]} 14. Qe2 {[%clk 0:02:21]}  Bc8 {[%clk 0:02:41]} 15. Nd4 {[%clk 0:02:13]}  Qe7 {[%clk 0:02:39]} 16. b4 {[%clk 0:02:03]}  Nce4 {[%clk 0:02:35]} 17. Nxe4 {[%clk 0:02:03]}  Nxe4 {[%clk 0:02:34]} 18. Bxe4 {[%clk 0:02:02]}  Qxe4 {[%clk 0:02:35]} 19. b5 {[%clk 0:02:02]}  c5 {[%clk 0:02:32]} 20. b6 {[%clk 0:01:54]}  cxd4 {[%clk 0:02:22]} 21. bxa7+ {[%clk 0:01:53]}  Ka8 {[%clk 0:02:21]} 22. Bxd4 {[%clk 0:01:50]}  Rhe8 {[%clk 0:02:16]} 23. Qb5 {[%clk 0:01:48]}  g5 {[%clk 0:01:53]} 24. Bf6 {[%clk 0:01:28]}  gxf4 {[%clk 0:01:42]} 25. Bxd8 {[%clk 0:01:28]}  Rxd8 {[%clk 0:01:43]} 26. exf4 {[%clk 0:01:24]}  Rg8 {[%clk 0:01:38]} 27. Rf2 {[%clk 0:01:15]}  Bxh3 {[%clk 0:01:34]} 28. g3 {[%clk 0:00:20]}  Bxf4 {[%clk 0:01:16]} 29. Rc3 {[%clk 0:00:09]}  Bxg3 {[%clk 0:01:06]} 30. Rxg3 {[%clk 0:00:02]}  Rxg3+ {[%clk 0:01:07]} 31. Kh2 {[%clk 0:00:03]}  Rg2+ {[%clk 0:01:06]} 32. Kxh3 {[%clk 0:00:03]}  Qg4# {[%clk 0:01:06]} 0-1


[Site "https://www.chess.com"]

[Event "Titled Tuesday Blitz November 01 Late 2022"]
[White "Sanal, Vahap"]
[Black "Firouzja, Alireza"]
[WhiteFideId "6300545"]
[BlackFideId "12573981"]
[WhiteElo "2574"]
[BlackElo "2903"]
[Result "0-1"]
[Round "07"]
[TimeControl "180+1"]
[Date "2022.11.01"]
[WhiteClock "0:00:02"]
[BlackClock "0:01:04"]

1. e4 {[%clk 0:03:00]}  c5 {[%clk 0:02:57]} 2. Nf3 {[%clk 0:03:00]}  e6 {[%clk 0:02:57]} 3. d4 {[%clk 0:02:59]}  cxd4 {[%clk 0:02:58]} 4. Nxd4 {[%clk 0:02:59]}  Nc6 {[%clk 0:02:55]} 5. Nc3 {[%clk 0:02:59]}  Qc7 {[%clk 0:02:54]} 6. g3 {[%clk 0:02:59]}  a6 {[%clk 0:02:50]} 7. Bg2 {[%clk 0:02:59]}  Nf6 {[%clk 0:02:50]} 8. O-O {[%clk 0:02:59]}  h5 {[%clk 0:02:51]} 9. h3 {[%clk 0:02:56]}  Bc5 {[%clk 0:02:46]} 10. Be3 {[%clk 0:02:50]}  Ne5 {[%clk 0:02:43]} 11. Qe2 {[%clk 0:02:44]}  d6 {[%clk 0:02:33]} 12. f4 {[%clk 0:02:37]}  Ng6 {[%clk 0:02:30]} 13. Rad1 {[%clk 0:02:34]}  Bd7 {[%clk 0:02:30]} 14. Nb3 {[%clk 0:02:27]}  Bxe3+ {[%clk 0:02:29]} 15. Qxe3 {[%clk 0:02:27]}  Rd8 {[%clk 0:02:29]} 16. Rd2 {[%clk 0:02:17]}  O-O {[%clk 0:02:25]} 17. Bf3 {[%clk 0:02:09]}  Bc6 {[%clk 0:02:24]} 18. g4 {[%clk 0:02:04]}  e5 {[%clk 0:02:18]} 19. f5 {[%clk 0:02:02]}  Nf4 {[%clk 0:02:17]} 20. g5 {[%clk 0:01:52]}  Nh7 {[%clk 0:02:17]} 21. h4 {[%clk 0:01:51]}  g6 {[%clk 0:02:08]} 22. Ne2 {[%clk 0:01:37]}  d5 {[%clk 0:02:06]} 23. exd5 {[%clk 0:01:18]}  Nxd5 {[%clk 0:02:05]} 24. Qc5 {[%clk 0:01:09]}  Ne7 {[%clk 0:02:01]} 25. Bxc6 {[%clk 0:01:06]}  bxc6 {[%clk 0:02:00]} 26. Ng3 {[%clk 0:01:01]}  e4 {[%clk 0:02:00]} 27. Kg2 {[%clk 0:00:53]}  Nd5 {[%clk 0:01:52]} 28. Nxe4 {[%clk 0:00:43]}  Qe5 {[%clk 0:01:52]} 29. Rd4 {[%clk 0:00:32]}  Ne3+ {[%clk 0:01:47]} 30. Kg1 {[%clk 0:00:32]}  Rd5 {[%clk 0:01:40]} 31. Qc3 {[%clk 0:00:16]}  Nxf1 {[%clk 0:01:38]} 32. Kxf1 {[%clk 0:00:15]}  Qxf5+ {[%clk 0:01:38]} 33. Kg2 {[%clk 0:00:11]}  Re8 {[%clk 0:01:35]} 34. Ng3 {[%clk 0:00:08]}  Qd7 {[%clk 0:01:30]} 35. Rf4 {[%clk 0:00:08]}  Rde5 {[%clk 0:01:29]} 36. Nd4 {[%clk 0:00:07]}  c5 {[%clk 0:01:26]} 37. Nf3 {[%clk 0:00:08]}  Re3 {[%clk 0:01:20]} 38. Qxc5 {[%clk 0:00:07]}  Nf8 {[%clk 0:01:21]} 39. Qd4 {[%clk 0:00:06]}  Qc6 {[%clk 0:01:20]} 40. c3 {[%clk 0:00:04]}  R3e7 {[%clk 0:01:14]} 41. Kf2 {[%clk 0:00:03]}  Ne6 {[%clk 0:01:14]} 42. Qf6 {[%clk 0:00:02]}  Qc5+ {[%clk 0:01:13]} 43. Rd4 {[%clk 0:00:02]}  Nxd4 {[%clk 0:01:13]} 44. Nxd4 {[%clk 0:00:03]}  Qd5 {[%clk 0:01:11]} 45. Qf4 {[%clk 0:00:03]}  Re5 {[%clk 0:01:10]} 46. Qf6 {[%clk 0:00:02]}  Qxa2 {[%clk 0:01:08]} 47. Qb6 {[%clk 0:00:02]}  Qb1 {[%clk 0:01:07]} 48. Nge2 {[%clk 0:00:01]}  Qe4 {[%clk 0:01:05]} 49. Qxa6 {[%clk 0:00:01]}  Qxh4+ {[%clk 0:01:05]} 50. Kf1 {[%clk 0:00:01]}  Rxg5 {[%clk 0:01:04]} 51. Qc6 {[%clk 0:00:01]}  Qh3+ {[%clk 0:01:04]} 52. Kf2 {[%clk 0:00:02]}  Rge5 {[%clk 0:01:04]} 53. Qf6 {[%clk 0:00:02]}  Rxe2+ {[%clk 0:01:04]} 54. Nxe2 {[%clk 0:00:02]}  Qe3+ {[%clk 0:01:04]} 0-1


[Site "https://www.chess.com"]

[Event "Titled Tuesday Blitz November 01 Late 2022"]
[White "Sanchez Enriquez, Oscar Gerardo"]
[Black "Ali Abdullahi, Farah"]
[WhiteFideId "5106311"]
[BlackFideId "16100212"]
[WhiteElo "2375"]
[BlackElo "2288"]
[Result "1-0"]
[Round "07"]
[TimeControl "180+1"]
[Date "2022.11.02"]
[WhiteClock "0:01:21"]
[BlackClock "0:00:21"]

1. Nf3 {[%clk 0:03:00]}  e6 {[%clk 0:02:58]} 2. e3 {[%clk 0:03:01]}  d5 {[%clk 0:02:58]} 3. b3 {[%clk 0:03:02]}  c5 {[%clk 0:02:58]} 4. Bb2 {[%clk 0:03:02]}  Nc6 {[%clk 0:02:59]} 5. Bb5 {[%clk 0:03:02]}  Ne7 {[%clk 0:02:59]} 6. O-O {[%clk 0:03:00]}  a6 {[%clk 0:02:59]} 7. Be2 {[%clk 0:03:00]}  b5 {[%clk 0:02:59]} 8. a4 {[%clk 0:02:59]}  b4 {[%clk 0:02:59]} 9. d3 {[%clk 0:02:59]}  Bb7 {[%clk 0:02:59]} 10. Nbd2 {[%clk 0:03:00]}  Ng8 {[%clk 0:02:53]} 11. e4 {[%clk 0:03:00]}  Nf6 {[%clk 0:02:53]} 12. exd5 {[%clk 0:03:00]}  exd5 {[%clk 0:02:53]} 13. d4 {[%clk 0:02:58]}  Be7 {[%clk 0:02:50]} 14. Re1 {[%clk 0:02:59]}  O-O {[%clk 0:02:50]} 15. Bd3 {[%clk 0:02:59]}  a5 {[%clk 0:02:47]} 16. Nf1 {[%clk 0:02:50]}  Re8 {[%clk 0:02:31]} 17. Ng3 {[%clk 0:02:50]}  cxd4 {[%clk 0:02:21]} 18. Nxd4 {[%clk 0:02:47]}  Bc5 {[%clk 0:02:17]} 19. Rxe8+ {[%clk 0:02:01]}  Qxe8 {[%clk 0:02:14]} 20. Bb5 {[%clk 0:02:01]}  Qe5 {[%clk 0:01:49]} 21. Bxc6 {[%clk 0:01:54]}  Bxc6 {[%clk 0:01:45]} 22. Qd3 {[%clk 0:01:47]}  Re8 {[%clk 0:01:34]} 23. Rd1 {[%clk 0:01:47]}  h5 {[%clk 0:01:19]} 24. Ba1 {[%clk 0:01:43]}  h4 {[%clk 0:01:15]} 25. Nxc6 {[%clk 0:01:42]}  hxg3 {[%clk 0:01:08]} 26. Bxe5 {[%clk 0:01:39]}  gxf2+ {[%clk 0:01:07]} 27. Kf1 {[%clk 0:01:38]}  Ng4 {[%clk 0:01:05]} 28. Qxd5 {[%clk 0:01:24]}  Ne3+ {[%clk 0:00:58]} 29. Ke2 {[%clk 0:01:24]}  Nxd5 {[%clk 0:00:58]} 30. Rxd5 {[%clk 0:01:25]}  Bb6 {[%clk 0:00:45]} 31. Rb5 {[%clk 0:01:21]}  Bc7 {[%clk 0:00:33]} 32. Kxf2 {[%clk 0:01:21]}  Bxe5 {[%clk 0:00:31]} 33. Rxe5 {[%clk 0:01:22]}  Ra8 {[%clk 0:00:24]} 34. Rxa5 {[%clk 0:01:21]}  Re8 {[%clk 0:00:21]} 35. Re5 {[%clk 0:01:21]}  Ra8 {[%clk 0:00:21]} 36. Nxb4 {[%clk 0:01:21]} 1-0


[Site "https://www.chess.com"]

[Event "Titled Tuesday Blitz November 01 Late 2022"]
[White "Shapiro, Daniel"]
[Black "O`Gorman, Tom"]
[WhiteFideId "2001780"]
[BlackFideId "2508249"]
[WhiteElo "2293"]
[BlackElo "2271"]
[Result "0-1"]
[Round "07"]
[TimeControl "180+1"]
[Date "2022.11.02"]
[WhiteClock "0:00:07"]
[BlackClock "0:01:17"]

1. d4 {[%clk 0:03:00]}  Nf6 {[%clk 0:02:58]} 2. c4 {[%clk 0:03:00]}  e5 {[%clk 0:02:59]} 3. dxe5 {[%clk 0:02:52]}  Ng4 {[%clk 0:02:59]} 4. Bf4 {[%clk 0:02:52]}  Nc6 {[%clk 0:02:56]} 5. Nf3 {[%clk 0:02:51]}  Bb4+ {[%clk 0:02:52]} 6. Nbd2 {[%clk 0:02:51]}  Qe7 {[%clk 0:02:52]} 7. e3 {[%clk 0:02:51]}  Ngxe5 {[%clk 0:02:50]} 8. Nxe5 {[%clk 0:02:52]}  Nxe5 {[%clk 0:02:50]} 9. Be2 {[%clk 0:02:52]}  d6 {[%clk 0:02:49]} 10. O-O {[%clk 0:02:51]}  O-O {[%clk 0:02:48]} 11. a3 {[%clk 0:02:50]}  Bc5 {[%clk 0:02:48]} 12. b4 {[%clk 0:02:47]}  Bb6 {[%clk 0:02:48]} 13. Nb3 {[%clk 0:02:26]}  c6 {[%clk 0:02:39]} 14. Qc2 {[%clk 0:02:20]}  Bc7 {[%clk 0:02:31]} 15. Rfd1 {[%clk 0:02:12]}  Qf6 {[%clk 0:02:18]} 16. Rac1 {[%clk 0:01:58]}  Bf5 {[%clk 0:02:17]} 17. Qc3 {[%clk 0:01:52]}  Qg6 {[%clk 0:02:15]} 18. c5 {[%clk 0:01:45]}  Be4 {[%clk 0:02:09]} 19. Bg3 {[%clk 0:01:33]}  d5 {[%clk 0:01:56]} 20. f3 {[%clk 0:01:27]}  Nxf3+ {[%clk 0:01:47]} 21. Bxf3 {[%clk 0:00:49]}  Bxf3 {[%clk 0:01:46]} 22. gxf3 {[%clk 0:00:49]}  Bxg3 {[%clk 0:01:45]} 23. hxg3 {[%clk 0:00:42]}  Qxg3+ {[%clk 0:01:46]} 24. Kh1 {[%clk 0:00:42]}  Qxf3+ {[%clk 0:01:46]} 25. Kh2 {[%clk 0:00:40]}  Rae8 {[%clk 0:01:34]} 26. e4 {[%clk 0:00:34]}  Qf2+ {[%clk 0:01:32]} 27. Kh1 {[%clk 0:00:20]}  Rxe4 {[%clk 0:01:33]} 28. Rd3 {[%clk 0:00:18]}  Rc4 {[%clk 0:01:24]} 29. Rf3 {[%clk 0:00:11]}  Qh4+ {[%clk 0:01:22]} 30. Rh3 {[%clk 0:00:11]}  Rxc3 {[%clk 0:01:19]} 31. Rxh4 {[%clk 0:00:10]}  Rxb3 {[%clk 0:01:20]} 32. Ra1 {[%clk 0:00:09]}  g5 {[%clk 0:01:17]} 33. Rg4 {[%clk 0:00:09]}  f6 {[%clk 0:01:18]} 34. Rf1 {[%clk 0:00:07]}  h5 {[%clk 0:01:18]} 35. Rg2 {[%clk 0:00:07]}  Kg7 {[%clk 0:01:18]} 36. Re2 {[%clk 0:00:08]}  Rxa3 {[%clk 0:01:17]} 37. Rfe1 {[%clk 0:00:08]}  Rf7 {[%clk 0:01:17]} 38. Re8 {[%clk 0:00:08]}  Rb3 {[%clk 0:01:17]} 39. Rb8 {[%clk 0:00:07]}  Rxb4 {[%clk 0:01:17]} 40. Ree8 {[%clk 0:00:07]}  Kg6 {[%clk 0:01:17]} 0-1


[Site "https://www.chess.com"]

[Event "Titled Tuesday Blitz November 01 Late 2022"]
[White "Shipov, Sergei"]
[Black "Manolache, Marius"]
[WhiteFideId "4113624"]
[BlackFideId "1201530"]
[WhiteElo "2773"]
[BlackElo "2603"]
[Result "1-0"]
[Round "07"]
[TimeControl "180+1"]
[Date "2022.11.02"]
[WhiteClock "0:00:35"]
[BlackClock "0:00:04"]

1. d4 {[%clk 0:03:00]}  Nf6 {[%clk 0:02:56]} 2. c4 {[%clk 0:03:00]}  d6 {[%clk 0:02:55]} 3. Nf3 {[%clk 0:03:00]}  c6 {[%clk 0:02:55]} 4. Nc3 {[%clk 0:03:00]}  Bf5 {[%clk 0:02:55]} 5. h3 {[%clk 0:02:59]}  h6 {[%clk 0:02:54]} 6. g4 {[%clk 0:02:59]}  Bg6 {[%clk 0:02:51]} 7. Bg2 {[%clk 0:02:58]}  Nbd7 {[%clk 0:02:51]} 8. d5 {[%clk 0:02:53]}  Rc8 {[%clk 0:02:43]} 9. O-O {[%clk 0:02:52]}  Ne4 {[%clk 0:02:39]} 10. Bd2 {[%clk 0:02:44]}  Nxd2 {[%clk 0:02:37]} 11. Qxd2 {[%clk 0:02:44]}  Nb6 {[%clk 0:02:27]} 12. b3 {[%clk 0:02:41]}  h5 {[%clk 0:02:19]} 13. Nh4 {[%clk 0:02:38]}  Bh7 {[%clk 0:02:15]} 14. g5 {[%clk 0:02:38]}  g6 {[%clk 0:02:06]} 15. Rac1 {[%clk 0:02:29]}  Bg7 {[%clk 0:01:59]} 16. Rfd1 {[%clk 0:02:25]}  O-O {[%clk 0:01:55]} 17. f4 {[%clk 0:02:24]}  Qd7 {[%clk 0:01:52]} 18. e4 {[%clk 0:02:12]}  f6 {[%clk 0:01:44]} 19. Nf3 {[%clk 0:01:34]}  fxg5 {[%clk 0:01:33]} 20. Nxg5 {[%clk 0:01:35]}  Bf6 {[%clk 0:01:31]} 21. Ne6 {[%clk 0:01:31]}  Rf7 {[%clk 0:01:27]} 22. Ne2 {[%clk 0:01:31]}  Kh8 {[%clk 0:01:21]} 23. N2d4 {[%clk 0:01:29]}  c5 {[%clk 0:01:13]} 24. Nf3 {[%clk 0:01:25]}  Rg8 {[%clk 0:01:11]} 25. e5 {[%clk 0:01:22]}  Bg7 {[%clk 0:01:00]} 26. Nfg5 {[%clk 0:01:19]}  Rff8 {[%clk 0:00:49]} 27. Nxf8 {[%clk 0:01:12]}  Rxf8 {[%clk 0:00:48]} 28. Rf1 {[%clk 0:01:12]}  Bh6 {[%clk 0:00:40]} 29. Qc3 {[%clk 0:01:08]}  Kg8 {[%clk 0:00:28]} 30. Rce1 {[%clk 0:01:08]}  Nc8 {[%clk 0:00:27]} 31. Ne6 {[%clk 0:01:03]}  Rf7 {[%clk 0:00:25]} 32. Qg3 {[%clk 0:01:04]}  Kh8 {[%clk 0:00:24]} 33. Be4 {[%clk 0:00:57]}  Qe8 {[%clk 0:00:18]} 34. Kh1 {[%clk 0:00:53]}  Qg8 {[%clk 0:00:17]} 35. Rg1 {[%clk 0:00:52]}  a6 {[%clk 0:00:14]} 36. Ng5 {[%clk 0:00:47]}  Rg7 {[%clk 0:00:11]} 37. e6 {[%clk 0:00:43]}  Qf8 {[%clk 0:00:10]} 38. Nxh7 {[%clk 0:00:40]}  Kxh7 {[%clk 0:00:10]} 39. Bxg6+ {[%clk 0:00:39]}  Kh8 {[%clk 0:00:11]} 40. Qh4 {[%clk 0:00:39]}  Qxf4 {[%clk 0:00:11]} 41. Qxf4 {[%clk 0:00:38]}  Bxf4 {[%clk 0:00:11]} 42. Ref1 {[%clk 0:00:39]}  Be3 {[%clk 0:00:07]} 43. Rf8+ {[%clk 0:00:38]}  Rg8 {[%clk 0:00:07]} 44. Rxg8+ {[%clk 0:00:39]}  Kxg8 {[%clk 0:00:08]} 45. Bf7+ {[%clk 0:00:39]}  Kh7 {[%clk 0:00:09]} 46. Rg8 {[%clk 0:00:39]}  Nb6 {[%clk 0:00:09]} 47. Rb8 {[%clk 0:00:39]}  Nxd5 {[%clk 0:00:06]} 48. cxd5 {[%clk 0:00:38]}  b5 {[%clk 0:00:06]} 49. Rb7 {[%clk 0:00:37]}  Bg5 {[%clk 0:00:06]} 50. Rb6 {[%clk 0:00:37]}  b4 {[%clk 0:00:06]} 51. Rxa6 {[%clk 0:00:37]}  Kg7 {[%clk 0:00:07]} 52. a3 {[%clk 0:00:37]}  Kf6 {[%clk 0:00:07]} 53. axb4 {[%clk 0:00:36]}  cxb4 {[%clk 0:00:07]} 54. Rb6 {[%clk 0:00:37]}  Bd2 {[%clk 0:00:08]} 55. Kg2 {[%clk 0:00:37]}  Ke5 {[%clk 0:00:08]} 56. Rb5 {[%clk 0:00:36]}  h4 {[%clk 0:00:07]} 57. Kf3 {[%clk 0:00:36]}  Be1 {[%clk 0:00:07]} 58. Ke3 {[%clk 0:00:35]}  Kf5 {[%clk 0:00:05]} 59. Bh5 {[%clk 0:00:35]}  Ke5 {[%clk 0:00:05]} 60. Bg4 {[%clk 0:00:35]}  Bc3 {[%clk 0:00:05]} 61. Kd3 {[%clk 0:00:35]}  Be1 {[%clk 0:00:05]} 62. Kc4 {[%clk 0:00:35]}  Kf6 {[%clk 0:00:04]} 63. Rxb4 {[%clk 0:00:35]} 1-0


[Site "https://www.chess.com"]

[Event "Titled Tuesday Blitz November 01 Late 2022"]
[White "Silva Lucena, Cristian"]
[Black "Bilan, Danila"]
[WhiteFideId "2232588"]
[BlackFideId "24161918"]
[WhiteElo "2223"]
[BlackElo "2203"]
[Result "0-1"]
[Round "07"]
[TimeControl "180+1"]
[Date "2022.11.02"]
[WhiteClock "0:00:34"]
[BlackClock "0:00:07"]

1. e4 {[%clk 0:03:00]}  c6 {[%clk 0:02:56]} 2. Nc3 {[%clk 0:02:57]}  d5 {[%clk 0:02:56]} 3. Nf3 {[%clk 0:02:56]}  Bg4 {[%clk 0:02:57]} 4. h3 {[%clk 0:02:56]}  Bxf3 {[%clk 0:02:57]} 5. Qxf3 {[%clk 0:02:57]}  e6 {[%clk 0:02:57]} 6. Be2 {[%clk 0:02:51]}  Nd7 {[%clk 0:02:55]} 7. O-O {[%clk 0:02:52]}  Ngf6 {[%clk 0:02:55]} 8. Rd1 {[%clk 0:02:49]}  d4 {[%clk 0:02:39]} 9. Nb1 {[%clk 0:02:48]}  Bd6 {[%clk 0:02:34]} 10. Bf1 {[%clk 0:02:34]}  Qc7 {[%clk 0:02:29]} 11. d3 {[%clk 0:02:31]}  O-O-O {[%clk 0:02:19]} 12. a4 {[%clk 0:02:30]}  Rdg8 {[%clk 0:02:14]} 13. Na3 {[%clk 0:02:25]}  Ne5 {[%clk 0:02:10]} 14. Qe2 {[%clk 0:02:25]}  g5 {[%clk 0:02:10]} 15. c3 {[%clk 0:02:22]}  dxc3 {[%clk 0:01:52]} 16. bxc3 {[%clk 0:02:21]}  g4 {[%clk 0:01:48]} 17. h4 {[%clk 0:02:21]}  Bxa3 {[%clk 0:01:43]} 18. Bg5 {[%clk 0:01:58]}  h6 {[%clk 0:01:32]} 19. d4 {[%clk 0:01:52]}  hxg5 {[%clk 0:01:09]} 20. dxe5 {[%clk 0:01:50]}  Qxe5 {[%clk 0:01:08]} 21. Rxa3 {[%clk 0:01:47]}  gxh4 {[%clk 0:00:52]} 22. Rb3 {[%clk 0:01:44]}  Rd8 {[%clk 0:00:40]} 23. Rdb1 {[%clk 0:01:39]}  Rd7 {[%clk 0:00:40]} 24. Rb4 {[%clk 0:01:11]}  g3 {[%clk 0:00:29]} 25. a5 {[%clk 0:01:06]}  Qc5 {[%clk 0:00:22]} 26. Rd4 {[%clk 0:00:55]}  Rxd4 {[%clk 0:00:18]} 27. cxd4 {[%clk 0:00:56]}  Qxd4 {[%clk 0:00:19]} 28. a6 {[%clk 0:00:51]}  b6 {[%clk 0:00:15]} 29. Rc1 {[%clk 0:00:51]}  c5 {[%clk 0:00:15]} 30. Rd1 {[%clk 0:00:48]}  Qxf2+ {[%clk 0:00:13]} 31. Qxf2 {[%clk 0:00:48]}  gxf2+ {[%clk 0:00:14]} 32. Kxf2 {[%clk 0:00:48]}  Nxe4+ {[%clk 0:00:15]} 33. Ke3 {[%clk 0:00:48]}  Nc3 {[%clk 0:00:14]} 34. Rd2 {[%clk 0:00:44]}  Nd5+ {[%clk 0:00:14]} 35. Ke4 {[%clk 0:00:44]}  Kd7 {[%clk 0:00:09]} 36. Bb5+ {[%clk 0:00:44]}  Kd6 {[%clk 0:00:08]} 37. Rf2 {[%clk 0:00:43]}  f5+ {[%clk 0:00:09]} 38. Kd3 {[%clk 0:00:43]}  Rg8 {[%clk 0:00:08]} 39. Kc2 {[%clk 0:00:42]}  Rg3 {[%clk 0:00:09]} 40. Kb2 {[%clk 0:00:37]}  Nc3 {[%clk 0:00:07]} 41. Be8 {[%clk 0:00:34]}  Nd1+ {[%clk 0:00:07]} 0-1


[Site "https://www.chess.com"]